Cogmind - Beta 12 @@@ ROGUE MODE // 2023.11.19 @ 11:15:41 Player: Slyfox Result: Destroyed by G-47 Trooper with Particle Gun Performance ------------- Evolutions (2) 1000 Regions Visited (4) 800 Robots Destroyed (11) 55 Value Destroyed (434) 434 Prototype IDs (0) 0 Alien Tech Used (0) 0 Bonus (12) 12 TOTAL SCORE: 2301 Bonus ------- Follower Combat Kills 41 Friendly Fire -29 Cogmind --------- Core Integrity 0/550 Matter 300/300 Energy 100/100 System Corruption 2% Temperature Cool (9) Movement Core (350) Ox6 Location -8/Materials Parts ------- > --- POWER (1) -------- (None) > --- PROPULSION (3) --- (None) > --- UTILITY (4) ------ Large Storage Unit Signal Interpreter > --- WEAPON (3) ------- (None) > --- INVENTORY (15) --- Ion Engine Ion Engine Light Ion Engine Light Nuclear Core Light Treads Aluminum Leg Small Storage Unit Medium Matter Pod (100) Small Laser Beam Rifle Peak State ------------ > --- POWER ------------ Light Angular Momentum Engine > --- PROPULSION ------- Aluminum Leg Aluminum Leg Carbon-fiber Leg > --- UTILITY ---------- Improved Heat Sink Large Storage Unit Structural Scanner Signal Interpreter > --- WEAPON ----------- Small Laser Field Laser Mining Laser > --- INVENTORY -------- Ion Engine Ion Engine Light Ion Engine Light Treads Aluminum Leg Small Storage Unit Medium Matter Pod Small Laser Beam Rifle [Rating: 22] Favorites ----------- Power Ion Engine Engine Ion Engine Propulsion Aluminum Leg Leg Aluminum Leg Utility Structural Scanner Device Structural Scanner Storage Small Storage Unit Processor Signal Interpreter Weapon Assault Rifle Energy Gun EM Pulse Gun Ballistic Gun Assault Rifle Special Weapon Mining Laser Build | -11 -10 -9 -9 -8 ------- Run | Jun Mat Mat Min Mat Slots Evolved 4 | . . 2 . 2 Power . | . . . . . Propulsion 1 | . . 1 . . Utility 2 | . . 1 . 1 Weapon 1 | . . . . 1 Parts Attached 24 | 6 3 4 1 10 Power 2 | 1 . . . 1 Engine 2 | 1 . . . 1 Core . | . . . . . Reactor . | . . . . . Propulsion 7 | 2 1 2 . 2 Treads . | . . . . . Leg 7 | 2 1 2 . 2 Wheel . | . . . . . Hover . | . . . . . Flight . | . . . . . Utility 9 | 1 2 2 . 4 Device 3 | . 1 . . 2 Storage 5 | 1 1 2 . 1 Processor 1 | . . . . 1 Hackware . | . . . . . Protection . | . . . . . Artifact . | . . . . . Weapon 6 | 2 . . 1 3 Energy Gun 4 | 1 . . . 3 Energy Cannon . | . . . . . Ballistic Gun 1 | 1 . . . . Ballistic Cannon . | . . . . . Launcher . | . . . . . Special Weapon 1 | . . . 1 . Impact Weapon . | . . . . . Slashing Weapon . | . . . . . Piercing Weapon . | . . . . . Special Melee Weapon . | . . . . . Unidentified Prototypes . | . . . . . Parts Lost 11 | . . . . 11 Power 1 | . . . . 1 Propulsion 3 | . . . . 3 Utility 2 | . . . . 2 Weapon 5 | . . . . 5 Highest Loss Streak 10 | . . . . 10 To Critical Strikes . | . . . . . Average Slot Usage (%) 83 | . 98 81 100 72 Engine 9 | . 14 11 11 4 Leg 24 | . 28 26 33 19 Device 12 | . 12 11 11 13 Storage 13 | . 14 11 22 12 Processor 2 | . . . . 5 Energy Gun 9 | . 14 11 1 6 Ballistic Gun 9 | . 14 11 11 4 Special Weapon 2 | . . . 9 5 Naked Turns . | . . . . . Heaviest Build 35 | 14 15 17 17 35 Greatest Support 35 | 3 20 30 30 35 Greatest Overweight (x) 6 | 4 4 . . 6 Average Overweight (x) . | 3 1 . . . Largest Inventory Capacity 15 | 8 8 8 8 15 Average Capacity 9 | 7 8 8 8 12 Most Carried 10 | 7 8 8 8 10 Average Carried 7 | 3 7 7 7 8 Final Capacity 15 | 8 8 8 8 15 Final Carried 10 | 6 8 7 8 10 Class Distribution -------------------- 81% | Mutant 13% | Skirmisher 5% | Scavenger-Skirmisher Dominant Class ---------------- Mutant | -10/Materials Mutant | -9/Materials Mutant | -9/Mines Mutant | -8/Materials Resources | -11 -10 -9 -9 -8 ----------- Run | Jun Mat Mat Min Mat Matter Collected 574 | 228 60 53 . 233 Remotely . | . . . . . Salvage Created 409 | . 68 163 . 178 Parts 21 | . 5 9 . 7 Haulers Intercepted . | . . . . . Recyclers Shooed . | . . . . . Parts Field Recycled . | . . . . . Retrieved Matter . | . . . . . Parts Self-Destructed . | . . . . . Prevented . | . . . . . Kills | -11 -10 -9 -9 -8 ------- Run | Jun Mat Mat Min Mat Combat Hostiles Destroyed 10 | . 2 4 . 4 Guns 9 | . 2 4 . 3 Cannons 1 | . . . . 1 Classes Destroyed 4 | . 1 1 . 2 Operator 1 | . . 1 . . Grunt 8 | . 2 4 . 2 Sentry 1 | . . . . 1 Hunter 1 | . . . . 1 Best Kill Streak 3 | . 1 3 . 2 Combat Bots Only 3 | . 1 3 . 2 Max Kills in Single Turn 1 | . 1 1 . 1 Gunslinging . | . . . . . Exploded . | . . . . . Melee . | . . . . . Uniques/NPCs Destroyed . | . . . . . Combat | -11 -10 -9 -9 -8 -------- Run | Jun Mat Mat Min Mat Damage Taken 1605 | . 86 76 . 1443 Core 596 | . 22 10 . 564 Absorbed by Shields . | . . . . . Core Remaining (%) 96 | 100 91 . 97 . Volleys Fired 35 | . 6 11 . 18 Largest 3 | . 2 2 . 3 Hottest 160 | . 60 60 . 160 Shots Fired 74 | . 12 22 . 40 Gun 70 | . 12 22 . 36 Cannon . | . . . . . Launcher . | . . . . . Special 4 | . . . . 4 Kinetic 26 | . 6 11 . 9 Thermal 31 | . . . . 31 Explosive . | . . . . . Electromagnetic 17 | . 6 11 . . Robot Hit Streak 12 | . 5 8 . 12 Robot Miss Streak 3 | . 2 1 . 3 Penetration Max . | . . . . . Secondary Targets . | . . . . . Shots Hit Robots 47 | . 7 14 . 26 Core Hits 24 | . 4 9 . 11 Critical Kills . | . . . . . Critical Parts Destroyed . | . . . . . Critical Strikes 1 | . . . . 1 Burn 1 | . . . . 1 Melee Attacks . | . . . . . Impact . | . . . . . Slashing . | . . . . . Piercing . | . . . . . Sneak Attacks . | . . . . . Combat Hostiles . | . . . . . Follow-up Attacks . | . . . . . Damage Inflicted 677 | . 86 209 . 382 Guns 618 | . 86 177 . 355 Cannons . | . . . . . Explosions 32 | . . 32 . . Melee . | . . . . . Ramming 3 | . . . . 3 Kinetic 240 | . 48 109 . 83 Thermal 328 | . . 32 . 296 Explosive . | . . . . . Electromagnetic 106 | . 38 68 . . Impact . | . . . . . Slashing . | . . . . . Piercing . | . . . . . Highest Corruption 2 | . . . . 2 Average Corruption 2 | . . . . 2 Corruption Purged . | . . . . . Corruption Blocked . | . . . . . Overload Shots . | . . . . . Overflow Damage . | . . . . . Projectiles . | . . . . . Explosions . | . . . . . Melee . | . . . . . Knockbacks . | . . . . . Impact . | . . . . . Kinetic . | . . . . . Secondary . | . . . . . Self-Inflicted Damage 1 | . . . . 1 Shots . | . . . . . Rammed 2 | . . . . 2 Targets Rammed 2 | . . . . 2 Kicked . | . . . . . Crushed . | . . . . . Highest Temperature 30 | . 30 3 . 17 Average Temperature 10 | . 16 3 . 6 Received Heat Transfer 999 | . 48 42 . 909 Siege Activations . | . . . . . Robots Corrupted . | . . . . . Combat Hostiles . | . . . . . Parts Fried . | . . . . . Impact Corruptions . | . . . . . Robots Melted . | . . . . . Combat Hostiles . | . . . . . Parts Melted . | . . . . . Heat Transferred 783 | . . 50 . 733 Parts Sabotaged . | . . . . . Parts Stolen . | . . . . . Parts Stripped . | . . . . . Power Chain Reactions 1 | . . 1 . . Missiles Intercepted . | . . . . . Alert | -11 -10 -9 -9 -8 ------- Run | Jun Mat Mat Min Mat Peak Influence 187 | . 95 187 72 180 Initial 72 | . . 39 72 27 Average 77 | . 37 109 72 111 Maximum Alert Level . | . . . . . Low Security (%) 100 | 100 100 100 100 100 Level 1 . | . . . . . Level 2 . | . . . . . Level 3 . | . . . . . Level 4 . | . . . . . Level 5 . | . . . . . High Security . | . . . . . Max Security . | . . . . . Squads Dispatched 4 | . 1 1 . 2 Investigation . | . . . . . Extermination . | . . . . . Reinforcement 4 | . 1 1 . 2 Assault . | . . . . . Garrison . | . . . . . Intercept . | . . . . . Searches Triggered . | . . . . . Construction Impeded 1 | . . . . 1 Haulers Reinforced . | . . . . . Active Scanning Responses . | . . . . . Cargo Convoy Interrupts . | . . . . . Stealth | -11 -10 -9 -9 -8 --------- Run | Jun Mat Mat Min Mat Distress Signals . | . . . . . Communications Jammed . | . . . . . Distress Signals . | . . . . . Times Spotted 22 | . 4 7 . 11 Peak Tracking Total 4 | . 2 4 . 4 Tactical Retreats 1 | . . . . 1 Traps | -11 -10 -9 -9 -8 ------- Run | Jun Mat Mat Min Mat Traps Triggered . | . . . . . Indirectly . | . . . . . Trap Hack Attempts . | . . . . . Triggered . | . . . . . Disarmed . | . . . . . Reprogrammed . | . . . . . Reused . | . . . . . Traps Extracted . | . . . . . Installed . | . . . . . Triggered . | . . . . . Machines | -11 -10 -9 -9 -8 ---------- Run | Jun Mat Mat Min Mat Machines Disabled 2 | . . 2 . . Max in Single Turn 1 | . . 1 . . Machines Repaired . | . . . . . Machines Sabotaged . | . . . . . Overloaded Fab Kills . | . . . . . Hacking | -11 -10 -9 -9 -8 --------- Run | Jun Mat Mat Min Mat Machines Accessed . | . . . . . Terminals . | . . . . . Fabricators . | . . . . . Repair Stations . | . . . . . Recycling Units . | . . . . . Scanalyzers . | . . . . . Garrison Access . | . . . . . Total Hacks . | . . . . . Successful . | . . . . . Failed . | . . . . . Catastrophic . | . . . . . Database Lockouts . | . . . . . Manual . | . . . . . Terminals . | . . . . . Fabricators . | . . . . . Repair Stations . | . . . . . Recycling Units . | . . . . . Scanalyzers . | . . . . . Garrison Access . | . . . . . Terminal Hacks . | . . . . . Fabricator Hacks . | . . . . . Repair Station Hacks . | . . . . . Recycling Unit Hacks . | . . . . . Scanalyzer . | . . . . . Garrison Access Hacks . | . . . . . Unauthorized Hacks . | . . . . . Terminals . | . . . . . Fabricators . | . . . . . Repair Stations . | . . . . . Recycling Units . | . . . . . Scanalyzers . | . . . . . Garrison Access . | . . . . . Data Cores Recovered 1 | . . 1 . . Used . | . . . . . Hacking Detections . | . . . . . Full Trace Events . | . . . . . Feedback Events . | . . . . . Feedback Blocked . | . . . . . Robot Schematics Acquired . | . . . . . Robots Built . | . . . . . Authchips . | . . . . . Time . | . . . . . Total Robot Build Rating . | . . . . . Part Schematics Acquired . | . . . . . Parts Built . | . . . . . Authchips . | . . . . . Time . | . . . . . Total Part Build Rating . | . . . . . Parts Repaired . | . . . . . Time . | . . . . . Parts Recycled . | . . . . . Recycled Matter . | . . . . . Retrieved Matter . | . . . . . Retrieved Components . | . . . . . Parts Scanalyzed . | . . . . . Part Schematics Acquired . | . . . . . Parts Damaged . | . . . . . Bothacking | -11 -10 -9 -9 -8 ------------ Run | Jun Mat Mat Min Mat Used RIF Installer . | . . . . . Robots Hacked . | . . . . . Non-combat . | . . . . . Combat . | . . . . . Robot Hacks Applied . | . . . . . Relay Couplers Released . | . . . . . Fabnet Peak Effective % . | . . . . . Robots Rewired . | . . . . . Allies Hacked . | . . . . . Hacks Repelled . | . . . . . Allies | -11 -10 -9 -9 -8 -------- Run | Jun Mat Mat Min Mat Total Allies 1 | . . . 1 . Largest Group 1 | . . . 1 1 Highest-Rated Group 31 | . . . 31 31 Highest-Rated Ally 31 | . . . 31 31 Total Orders . | . . . . . Ally Attacks 11 | . . . . 11 Total Damage 186 | . . . . 186 Kills 1 | . . . . 1 Allies Corrupted . | . . . . . Allies Melted . | . . . . . Intel | -11 -10 -9 -9 -8 ------- Run | Jun Mat Mat Min Mat Robot Analysis Total . | . . . . . Derelict Logs Recovered . | . . . . . Drone Launches . | . . . . . Drone Recoveries . | . . . . . Exploration | -11 -10 -9 -9 -8 ------------- Run | Jun Mat Mat Min Mat Turns Passed 990 | 123 235 227 63 342 Spaces Moved 506 | 46 109 152 51 148 Core 100 | 46 42 . . 12 Treads . | . . . . . Legs 406 | . 67 152 51 136 Wheels . | . . . . . Hover . | . . . . . Flight . | . . . . . Fastest Speed 50 | 50 120 120 120 120 Average Speed 154 | 232 170 120 120 167 Slowest Speed 350 | 250 250 120 120 350 Overloaded Moves . | . . . . . Propulsion Burnouts . | . . . . . Robots Hopped . | . . . . . Cave-ins Triggered . | . . . . . Exploration Rate (%) 19 | 5 23 22 29 18 Regions Visited 4 Branch Regions 1 Pre-discovered Areas . | . . . . . Known Exits Taken . | . . . . . Unknown Exits Taken 4 | 1 1 1 1 . Scrap Searched . | . . . . . Spaces Dug . | . . . . . Terrain Destroyed 4 | . . 2 . 2 Melee . | . . . . . Projectile 2 | . . . . 2 AOE 2 | . . 2 . . Terrain Rammed . | . . . . . Walls Destroyed . | . . . . . Machines Disabled . | . . . . . Actions | -11 -10 -9 -9 -8 --------- Run | Jun Mat Mat Min Mat Total 631 | 63 146 175 52 195 Wait 33 | . 22 5 . 6 Move 502 | 45 108 151 50 148 Hop . | . . . . . Pick Up 27 | 12 5 2 1 7 Fast Attach . | . . . . . Attach 14 | 6 1 3 . 4 Detach . | . . . . . Swap 10 | . 2 1 1 6 Drop 8 | . 2 2 . 4 Fire 35 | . 6 11 . 18 Melee . | . . . . . Ram 2 | . . . . 2 Kick . | . . . . . Crush . | . . . . . Escape Stasis . | . . . . . Rewire . | . . . . . Trap . | . . . . . Miscellaneous . | . . . . . Route ------- -11/Junkyard -10/Materials -9/Materials -9/Mines -8/Materials History --------- Turn | Location | Event 36 | -11/Junkyard | Discovered new exit (range 16) 124 | -11/Junkyard | Entered Materials 307 | -10/Materials | Build established: Mutant 341 | -10/Materials | Discovered new exit (range 16) 359 | -10/Materials | Entered another Materials area 359 | -9/Materials | Evolved 2 slots: Propulsion x1, Utility x1 568 | -9/Materials | Discovered new exit (range 9) 586 | -9/Materials | Entered Mines 589 | -9/Mines | Received a Mining Laser from a helpful Derelict 632 | -9/Mines | Discovered new exit (range 15) 649 | -9/Mines | Entered Materials 649 | -8/Materials | Accompanied by 1 ally 649 | -8/Materials | Evolved 2 slots: Utility x1, Weapon x1 936 | -8/Materials | Core integrity fell below 50% 972 | -8/Materials | Lost 10 parts (1p3n2u4w) 977 | -8/Materials | Core integrity fell below 20% 991 | -8/Materials | Destroyed by G-47 Trooper with Particle Gun Last Messages --------------- G-47 Trooper heat spikes uncontrollably. G-47 Trooper overheating. G-47 Trooper heat damages Imp. Heat Sink. G-47 Trooper overheating. G-47 Trooper heat damages Aluminum Leg, Imp. Heat Sink. K-01 Serf collects debris. Aluminum Leg destroyed. K-01 Serf collects debris. G-47 Trooper heat damages Imp. Heat Sink. K-01 Serf collects debris. Carbon-fiber Leg destroyed. Field Laser destroyed. Imp. Heat Sink destroyed. Critical hit (Burn: +37). Structural Scanner destroyed. Aluminum Leg destroyed. Slammed into G-47 Trooper. Destabilizing: System corrupted (+2). Matter Filter disabled. Slammed into G-47 Trooper. Map ----- +----------------------------------------------------+ | ???? # ####+#??????????????????????? | | ???? + # ##???????????????????? | | ??"" # #* """# ???????????????????? | | ??? # != # """# ???????????????????? | | ???? + ]= # """# ???????????????????? | | ???? # == # [ # ???????????????????? | | ???? # # ! # ??????????? | | # # ###/##############??????????? | | ###### % + ??????????? | | # # [ ###### """"" ##???????? | | # # """ ###### """"" ##???????? | | # ! #% """ [ # """"" ##???????? | | # !#! """ % # ##???????? | | # |+% + """"" ##???????? | | # *#= # """"" ##???????? | | # %# # # """"" ##???????? | | # !# ###### ###### # ##???????? | | # = =#%### ######+###### + ##???????? | | ###### ### # ^ ### # ##???????? | | ###### ### # ? ### ##+#######???????? | | ???### ### # """"""" ### #######???????? | | ????## ### # """""""g###/########?????????? | | ###### ### # """"""%g# ] ##?????????? | | ######+### # """"""%%# ##?????????? | | # + # """"""%%# ! ##?????????? | | # """ # # @ g# ##?????????? | | # """ # #####+############+###?????????? | | # """ "" # #### ###?????????? | | # "" + / "" ##??????????? | | # """ T" # #### Y" ##??????????? | | # """ "" ### #### "" ##??????????? | | # """ "" ###+## ####= ##??????????? | | # # # #### """ ##??????????? | | ########## # #### """ ##??????????? | | ########## # #### """ ! ##??????????? | | ????????## # #### ##??????????? | | ?????##### # ########+#####??????????? | | ########## # ####??????????? | | ####### ## # ???????????????? | | # =!# + ?????????????????? | | #" ! # # ##?????????????????? | | #" """ #+#### ##?????????????????? | | #" """ # ##?????????????????? | | #T """ + ##?????????????????? | | #" """ # ##?????????????????? | | #" """ ###+####### ##?????????????????? | | #" # ## ##?????????????????? | | # ] # """#######?????????????????? | | ########## """#######?????????????????? | | ########## """##??????????????????????? | +----------------------------------------------------+ Best States ------------- Heat Dissipation 45 Energy Generation 18 Energy Capacity 250 Matter Stores 390 Matter Capacity 400 Sight Range 16 Terrain Scan Density 10 Evasion (%) 55 Item Schematics ----------------- None Robot Schematics ------------------ None Fabricated ------------ Nothing Alien Tech Used ----------------- None Achievements -------------- None Challenges ------------ None Game ------ Seed SpreadAssaultHumpback Manual? 0 Play Time 00:24:43 Cumulative 7.4 hours Start 2023.11.19 @ 10:55:54 End 2023.11.19 @ 11:15:41 Sessions 1 Manual Loads 0 Difficulty Rogue Special Mode None Game No. 15 Rogue 15 Adventurer 0 Explorer 0 Win Type - Total 0 Types 0/0/0/0/0/0/0/0/0 Lore% 7 Gallery% 9 Achievement% 10 Wizard Run 0 Options --------- ASCII 0 Keyboard 0 Movement Mouse Keybinds 0 Fullscreen 1 Font 24/Smallcaps Map View 76x50 Tactical HUD 0 Map Filters NONE Filters NONE Steam 1 RUN: 34e58503-191e-4659-a7ad-f80a5278540c